Cogmind - Beta 10.2 @@@ ROGUE MODE // 2020.11.08 @ 20:25:17 // Halloween2020/ForbiddenLore Player: Demise Result: Destroyed by Enhanced Grunt with Neutron Cannon Performance ------------- Evolutions (3) 1500 Regions Visited (13) 2600 Robots Destroyed (161) 805 Value Destroyed (5352) 5352 Prototype IDs (241) 4820 Alien Tech Used (0) 0 Bonus (5160) 5160 TOTAL SCORE: 20237 Bonus ------- High Alert Combat Kills 425 Follower Combat Kills 435 Entered Garrisons 200 Used RIF Installer 500 Aligned with FarCom 300 Met Data Miner 300 Used Data Conduit 3000 Cogmind --------- Core Integrity 0/700 Matter 145/300 Energy 100/100 System Corruption 0% Temperature Cool (6) Movement Core (1400) Ox27 Location -7/Data Miner Parts ------- > --- POWER (1) -------- (None) > --- PROPULSION (2) --- (None) > --- UTILITY (8) ------ Large Storage Unit High-capacity Storage Unit High-capacity Storage Unit Advanced Signal Interpreter Improved Target Analyzer > --- WEAPON (2) ------- Flak Gun > --- INVENTORY (26) --- Improved Deuterium Engine Reinforced Deuterium Engine Makeshift Power Source High-capacity Battery (400) Large Matter Pod (150) Experimental Sensor Array Improved Terrain Scanner Salvage Targeting Computer EX Chip 1 EX Chip 1 EX Chip 1 EX Chip 2 EX Chip 2 Relay Coupler [NC] (27) Relay Coupler [NC] (22) Relay Coupler [NC] (25) Relay Coupler [NC] (26) Relay Coupler [ARC] (10) Relay Coupler [Brawler] (29) Relay Coupler [Sentry] (21) Relay Coupler [Sentry] (21) Chronowheel Field Lobotomy Kit Spear Peak State ------------ > --- POWER ------------ Micro Fission Core > --- PROPULSION ------- Advanced Treads Medium Treads > --- UTILITY ---------- Advanced Heat Sink Large Storage Unit Large Storage Unit Large Storage Unit High-capacity Storage Unit High-capacity Storage Unit Advanced Signal Interpreter Improved Light Armor Plating > --- WEAPON ----------- AWS/Thermal > --- INVENTORY -------- Improved Deuterium Engine Reinforced Deuterium Engine Makeshift Power Source Medium Storage Unit High-capacity Battery Large Matter Pod Experimental Sensor Array Improved Terrain Scanner Salvage Targeting Computer Improved Target Analyzer Advanced Core Analyzer Insulated Plating EX Chip 1 EX Chip 1 EX Chip 1 EX Chip 2 EX Chip 2 Makeshift System Shield Relay Coupler [NC] Relay Coupler [NC] Relay Coupler [NC] Relay Coupler [NC] Relay Coupler [ARC] Relay Coupler [Brawler] Relay Coupler [Sentry] Relay Coupler [Sentry] Relay Coupler [Sentry] Relay Coupler [Demolisher] System Purifier Chronowheel Gauss Rifle Gauss Rifle Flak Gun Proton Missile Launcher Remote Datajack Field Lobotomy Kit Spear [Rating: 59] Favorites ----------- Power Cold Fusion Reactor Engine Ion Engine Power Core Light Nuclear Core Reactor Cold Fusion Reactor Propulsion Light Treads Treads Light Treads Leg Aluminum Leg Wheel Wheel Utility Large Storage Unit Device Experimental Sensor Array Storage Large Storage Unit Processor Advanced Signal Interpreter Hackware Hacking Suite Protection Light Armor Plating Weapon Heavy Assault Rifle Energy Gun EM Pulse Gun Energy Cannon Heavy Particle Cannon Ballistic Gun Heavy Assault Rifle Launcher Proton Missile Launcher Special Weapon Mining Laser Slashing Weapon Scythe Piercing Weapon Spear Special Melee Weapon Improved Datajack Build | -11 -10 -10 -9 -9 -9 -8 -8 -8 -8 -7 -7 -7 -7 ------- Run | Scr Mat Min Mat Min Exi Min Mat Gar Mat Fac Low Low Dat Slots Evolved 6 | . . . 2 . . . 2 . . 2 . . . Power . | . . . . . . . . . . . . . . Propulsion . | . . . . . . . . . . . . . . Utility 6 | . . . 2 . . . 2 . . 2 . . . Weapon . | . . . . . . . . . . . . . . Parts Attached 227 | 4 11 . 10 7 42 2 28 35 15 35 17 8 13 Power 19 | . 1 . 2 1 4 . 2 3 1 3 2 . . Engine 11 | . 1 . 2 1 2 . 1 2 . 2 . . . Core 5 | . . . . . 1 . . . 1 1 2 . . Reactor 3 | . . . . . 1 . 1 1 . . . . . Propulsion 37 | 2 3 . . 2 6 . 4 3 7 7 3 . . Treads 26 | 2 3 . . 2 2 . 4 3 4 3 3 . . Leg 8 | . . . . . 4 . . . 3 1 . . . Wheel 3 | . . . . . . . . . . 3 . . . Hover . | . . . . . . . . . . . . . . Flight . | . . . . . . . . . . . . . . Utility 77 | 2 2 . 3 3 22 . 9 12 . 10 6 5 3 Device 10 | 1 . . . . 1 . 2 . . . 3 3 . Storage 30 | 1 2 . . . 18 . 3 6 . . . . . Processor 3 | . . . . . . . . . . . . 1 2 Hackware 6 | . . . . . . . . . . 5 1 . . Protection 28 | . . . 3 3 3 . 4 6 . 5 2 1 1 Artifact . | . . . . . . . . . . . . . . Weapon 94 | . 5 . 5 1 10 2 13 17 7 15 6 3 10 Energy Gun 12 | . 1 . . . 2 . 4 . 1 1 . . 3 Energy Cannon 2 | . . . . . . . . . 2 . . . . Ballistic Gun 61 | . 3 . 5 . 8 1 7 12 4 9 4 3 5 Ballistic Cannon . | . . . . . . . . . . . . . . Launcher 2 | . . . . . . . . . . . 1 . 1 Special Weapon 7 | . 1 . . 1 . 1 1 . . 2 1 . . Impact Weapon . | . . . . . . . . . . . . . . Slashing Weapon 7 | . . . . . . . 1 5 . 1 . . . Piercing Weapon 1 | . . . . . . . . . . . . . 1 Special Melee Weapon 2 | . . . . . . . . . . 2 . . . Unidentified Prototypes 9 | . . . 1 . 4 . 3 . 1 . . . . Parts Lost 62 | . . . 2 5 12 1 4 5 7 10 2 . 14 Power 8 | . . . . 1 2 . . 1 1 2 . . 1 Propulsion 15 | . . . 1 1 3 . 1 . 4 2 1 . 2 Utility 19 | . . . 1 3 2 . 2 2 . 2 1 . 6 Weapon 20 | . . . . . 5 1 1 2 2 4 . . 5 Highest Loss Streak 14 | . . . 1 5 9 1 2 5 2 6 1 . 14 Average Slot Usage (%) 97 | . 100 100 97 99 90 99 98 97 92 97 99 100 92 Engine 4 | . 14 14 11 11 6 . . 4 . 3 . . . Core 1 | . . . . . . . . . 3 3 6 7 6 Reactor 2 | . . . . . 3 11 8 4 5 . . . . Treads 15 | . 28 28 21 22 11 22 17 18 7 3 14 15 12 Leg 2 | . . . . . 9 . . . 4 4 . . . Device 2 | . . . . . . . 1 . . . 6 15 6 Storage 36 | . 28 28 22 22 29 44 39 35 54 46 46 38 36 Hackware 1 | . . . . . . . . . . 10 6 . . Protection 7 | . . . 19 21 7 . 11 16 . 4 1 1 5 Energy Gun 2 | . 19 . . . 1 10 4 . . 1 . . 1 Ballistic Gun 15 | . 7 28 22 21 19 11 12 16 14 8 14 15 11 Naked Turns . | . . . . . . . . . . . . . . Heaviest Build 152 | 16 41 39 54 59 114 119 133 146 146 152 147 146 129 Greatest Support 50 | 40 46 46 46 46 50 40 40 40 40 28 50 50 50 Greatest Overweight (x) 48 | . 1 . 2 1 8 2 3 3 48 15 5 2 4 Average Overweight (x) 2 | . . . . 1 1 2 2 1 7 10 2 2 2 Largest Inventory Capacity 44 | 8 16 16 16 16 32 32 38 44 44 44 44 44 38 Average Capacity 30 | 7 14 16 16 16 20 32 34 29 44 44 44 38 36 Most Carried 44 | 8 16 16 16 16 32 32 37 44 44 44 44 44 38 Average Carried 28 | 7 13 16 15 14 17 31 32 26 43 43 43 38 36 Final Capacity 44 | 8 16 16 16 16 32 32 38 44 44 44 44 38 26 Final Carried 44 | 8 16 16 16 16 32 31 37 44 44 44 44 38 24 Class Distribution -------------------- 31% | Hauler-Mutant 28% | Mutant 25% | Bothacker-Mutant 8% | Scavenger-Mutant 5% | Bothacker-Skirmisher Dominant Class ---------------- Mutant | -10/Materials Mutant | -10/Mines Mutant | -9/Materials Mutant | -9/Mines Hauler-Mutant | -9/Exiles Hauler-Mutant | -8/Mines Hauler-Mutant | -8/Materials Scavenger-Mutant | -8/Garrison Hauler-Mutant | -8/Materials Bothacker-Mutant | -7/Factory Bothacker-Mutant | -7/Lower Caves Bothacker-Skirmisher | -7/Lower Caves Bothacker-Mutant | -7/Data Miner Resources | -11 -10 -10 -9 -9 -9 -8 -8 -8 -8 -7 -7 -7 -7 ----------- Run | Scr Mat Min Mat Min Exi Min Mat Gar Mat Fac Low Low Dat Matter Collected 5009 | 240 190 45 199 156 1160 18 657 719 391 745 319 170 . Remotely . | . . . . . . . . . . . . . . Salvage Created 6598 | 237 437 29 695 134 530 54 1075 817 976 713 470 153 278 Parts 412 | 24 41 3 42 7 64 5 57 31 53 43 25 4 13 Haulers Intercepted 7 | . 2 . 1 . . . 1 . 2 1 . . . Recyclers Shooed 2 | . . . 1 . . . . . . 1 . . . Parts Field Recycled . | . . . . . . . . . . . . . . Retrieved Matter . | . . . . . . . . . . . . . . Parts Self-Destructed 31 | . . . . . . . . . . . 22 9 . Prevented 10 | . . . . . . . . . . . 10 . . Kills | -11 -10 -10 -9 -9 -9 -8 -8 -8 -8 -7 -7 -7 -7 ------- Run | Scr Mat Min Mat Min Exi Min Mat Gar Mat Fac Low Low Dat Combat Hostiles Destroyed 123 | . 8 2 17 3 5 3 21 20 16 14 8 3 3 Guns 114 | . 7 2 17 3 5 3 21 19 14 14 4 3 2 Cannons 2 | . . . . . . . . . 2 . . . . AOE 5 | . 1 . . . . . . . . . 4 . . Classes Destroyed 17 | 3 5 . 2 . 2 . 3 . 1 1 . . . Worker 7 | 2 2 . . . . . . . 1 2 . . . Builder 1 | . 1 . . . . . . . . . . . . Tunneler 6 | 5 . . . . . . . . 1 . . . . Hauler 7 | . 2 . 1 . . . 1 . 2 1 . . . Recycler 5 | 1 . . 1 . . . 2 . . 1 . . . Operator 2 | . . . . . . . 2 . . . . . . Watcher 3 | . 3 . . . . . . . . . . . . Swarmer 35 | . 6 2 7 . . 3 4 6 . 6 1 . . Grunt 47 | . 2 . 5 2 . . 11 11 11 2 2 1 . Brawler 4 | . . . 1 1 . . . . . . 2 . . Duelist 4 | . . . . . . . 1 . 1 . 1 1 . Protector 1 | . . . . . . . . . 1 . . . . Sentry 16 | . . . 4 . . . 4 3 3 1 1 . . Hunter 5 | . . . . . . . 1 . . 2 1 1 . Programmer 3 | . . . . . . . . . . 3 . . . Enhanced Grunt 3 | . . . . . . . . . . . . . 3 Zionite 8 | . . . . . 8 . . . . . . . . Assembled 4 | . . . . . 4 . . . . . . . . Best Kill Streak 8 | 4 3 2 8 2 8 3 5 5 7 4 7 2 2 Combat Bots Only 7 | . 3 2 7 2 3 3 5 5 6 4 7 2 2 Max Kills in Single Turn 2 | 1 2 1 2 2 1 1 2 2 2 1 2 1 1 Gunslinging 1 | . 1 . . 1 . . 1 1 . . . . . Exploded 2 | . 1 . . . . . . . . . 2 . . Melee . | . . . . . . . . . . . . . . Uniques/NPCs Destroyed 4 | . . . . . 4 . . . . . . . . 8R-AWN (-9/Exiles) EX-BIN (-9/Exiles) EX-HEX (-9/Exiles) EX-DEC (-9/Exiles) Combat | -11 -10 -10 -9 -9 -9 -8 -8 -8 -8 -7 -7 -7 -7 -------- Run | Scr Mat Min Mat Min Exi Min Mat Gar Mat Fac Low Low Dat Damage Taken 12666 | . 216 178 808 541 1635 163 1435 931 1588 2128 709 223 2111 Core 1666 | . 20 31 87 23 247 38 148 61 302 266 65 . 378 Absorbed by Shields . | . . . . . . . . . . . . . . Core Remaining (%) 46 | 100 . 79 . . . 1 . . 7 . . . . Volleys Fired 561 | 10 31 13 62 20 110 7 88 65 52 57 21 8 17 Largest 2 | 2 2 2 2 2 2 2 2 2 2 2 2 2 2 Hottest 122 | 80 100 40 43 100 46 68 122 46 98 89 56 56 56 Shots Fired 1103 | 20 57 26 124 38 222 13 170 124 100 106 31 16 56 Gun 1066 | 20 53 26 124 36 222 12 167 124 87 103 20 16 56 Cannon 14 | . . . . . . . . . 13 1 . . . Launcher 5 | . . . . . . . . . . . 5 . . Special 18 | . 4 . . 2 . 1 3 . . 2 6 . . Kinetic 880 | . 1 26 124 36 197 6 129 124 87 92 20 16 22 Thermal 132 | 10 4 . . 2 16 . 41 . 13 12 . . 34 Explosive . | . . . . . . . . . . . . . . Electromagnetic 82 | 10 52 . . . 9 6 . . . . 5 . . Robot Hit Streak 36 | 4 5 7 12 11 18 5 36 24 13 12 16 18 30 Robot Miss Streak 9 | 3 4 5 3 3 4 2 4 3 4 9 4 3 4 Penetration Max 2 | . . . . . . . . . 2 1 . . . Secondary Targets 20 | . 3 . 2 1 2 . 3 3 3 3 . . . Max Gunslinging Chain 1 | . 1 . 1 1 1 . 1 1 1 1 . . . Autonomous 50 | . . . . . 16 . . . . . . . 34 Shots Hit Robots 819 | 10 29 14 95 25 162 9 126 93 77 94 21 14 50 Core Hits 381 | 8 19 6 38 6 42 3 51 35 40 65 27 14 27 Critical Hits 15 | . . . 2 . . . 2 3 7 1 . . . Critical Kills 7 | . . . . . . . . 3 3 1 . . . Critical Parts Destroyed 8 | . . . 2 . . . 2 . 4 . . . . Melee Attacks 24 | . . . . . . . 2 17 . 4 . . 1 Impact . | . . . . . . . . . . . . . . Slashing 20 | . . . . . . . 2 17 . 1 . . . Piercing 1 | . . . . . . . . . . . . . 1 Sneak Attacks 3 | . . . . . . . 1 . . 1 . . 1 Combat Hostiles . | . . . . . . . . . . . . . . Follow-up Attacks . | . . . . . . . . . . . . . . Damage Inflicted 13255 | 224 521 95 862 295 2709 115 2124 1264 1369 1513 803 288 1073 Guns 12221 | 163 439 95 862 295 2610 115 2013 1257 1144 1513 434 288 993 Cannons 225 | . . . . . . . . . 225 . . . . Explosions 611 | 61 82 . . . 99 . . . . . 369 . . Melee 176 | . . . . . . . 96 . . . . . 80 Ramming 22 | . . . . . . . 15 7 . . . . . Kinetic 9691 | . . 95 862 295 2086 60 1449 1257 1144 1385 434 288 336 Thermal 2276 | 139 82 . . . 481 . 564 . 225 128 . . 657 Explosive . | . . . . . . . . . . . . . . Electromagnetic 1090 | 85 439 . . . 142 55 . . . . 369 . . Impact . | . . . . . . . . . . . . . . Slashing 96 | . . . . . . . 96 . . . . . . Piercing 80 | . . . . . . . . . . . . . 80 Highest Corruption 3 | . . . . . . . . . . 3 3 2 . Average Corruption 1 | . . . . . . . . . . 1 2 1 . Corruption Purged 5 | . . . . . . . . . . . 3 2 . Effects 21 | . . . . . . . . . . 13 7 1 . Message Errors 10 | . . . . . . . . . . 5 4 1 . Heat Flow Errors 5 | . . . . . . . . . . 2 3 . . Data Loss (minor) 2 | . . . . . . . . . . 2 . . . Targeting Errors 3 | . . . . . . . . . . 3 . . . Weapon Failures 1 | . . . . . . . . . . 1 . . . Overload Shots . | . . . . . . . . . . . . . . Overflow Damage 101 | . . . . . . . 78 3 . . . . 20 Projectiles . | . . . . . . . . . . . . . . Explosions . | . . . . . . . . . . . . . . Melee 101 | . . . . . . . 78 3 . . . . 20 Knockbacks . | . . . . . . . . . . . . . . Impact . | . . . . . . . . . . . . . . Kinetic . | . . . . . . . . . . . . . . Secondary . | . . . . . . . . . . . . . . Self-Inflicted Damage 48 | . 34 . . . . . . . . . 14 . . Shots 2 | . 1 . . . . . . . . . 1 . . Rammed 4 | . . . . . . . 3 1 . . . . . Targets Rammed 4 | . . . . . . . 3 1 . . . . . Kicked . | . . . . . . . . . . . . . . Crushed . | . . . . . . . . . . . . . . Highest Temperature 366 | 90 72 . 26 105 19 . 327 121 366 234 168 . . Average Temperature 50 | 35 23 . 7 36 18 . 116 27 140 66 43 . . Received Heat Transfer 3278 | . 24 . 255 300 80 18 540 486 801 423 72 9 270 Effects 1 | . . . . . . . 1 . . . . . . Damage (minor) 1 | . . . . . . . 1 . . . . . . Siege Activations . | . . . . . . . . . . . . . . Robots Corrupted 1 | . . . . . 1 . . . . . . . . Combat Hostiles . | . . . . . . . . . . . . . . Parts Fried 5 | . 1 . . . 2 . . 1 . . 1 . . Impact Corruptions 1 | . . . . . . . . 1 . . . . . Robots Melted 1 | . . . . . . . . . . . . . 1 Combat Hostiles 1 | . . . . . . . . . . . . . 1 Parts Melted 8 | 1 . . . . . . 3 . . . . . 4 Heat Transferred 3966 | 275 150 . . . 581 . 1147 . 333 259 . . 1221 Parts Sabotaged . | . . . . . . . . . . . . . . Parts Stolen . | . . . . . . . . . . . . . . Parts Stripped . | . . . . . . . . . . . . . . Power Chain Reactions 4 | 1 2 . . . 1 . . . . . . . . Missiles Intercepted . | . . . . . . . . . . . . . . Alert | -11 -10 -10 -9 -9 -9 -8 -8 -8 -8 -7 -7 -7 -7 ------- Run | Scr Mat Min Mat Min Exi Min Mat Gar Mat Fac Low Low Dat Peak Influence 1040 | 40 150 50 489 244 . 166 389 1040 675 253 . . . Initial 507 | . 26 . . 148 . . 20 230 507 238 . . . Average 283 | 22 64 16 231 84 . 78 178 760 576 104 . . . Maximum Alert Level 3 | . . . 2 1 . . 1 3 2 1 . . . Low Security (%) 58 | 100 100 100 43 95 . 100 58 . . 77 . . . Level 1 14 | . . . 42 4 . . 41 13 . 22 . . . Level 2 12 | . . . 14 . . . . 17 100 . . . . Level 3 15 | . . . . . . . . 68 . . . . . Level 4 . | . . . . . . . . . . . . . . Level 5 . | . . . . . . . . . . . . . . High Security . | . . . . . . . . . . . . . . Max Security . | . . . . . . . . . . . . . . Squads Dispatched 17 | . 1 . 2 . . . 3 . 4 7 . . . Investigation 2 | . 1 . . . . . . . 1 . . . . Extermination 2 | . . . . . . . . . . 2 . . . Reinforcement 9 | . . . 2 . . . 3 . 2 2 . . . Assault 1 | . . . . . . . . . 1 . . . . Garrison 3 | . . . . . . . . . . 3 . . . Intercept . | . . . . . . . . . . . . . . Construction Impeded . | . . . . . . . . . . . . . . Haulers Reinforced 1 | . . . . . . . . . . 1 . . . Stealth | -11 -10 -10 -9 -9 -9 -8 -8 -8 -8 -7 -7 -7 -7 --------- Run | Scr Mat Min Mat Min Exi Min Mat Gar Mat Fac Low Low Dat Distress Signals 5 | . 1 . 3 . . . 1 . . . . . . Communications Jammed . | . . . . . . . . . . . . . . Distress Signals . | . . . . . . . . . . . . . . Times Spotted 230 | . 15 3 27 7 37 8 47 22 19 23 15 3 4 Peak Tracking Total 10 | . 3 3 5 3 10 4 6 4 5 4 9 2 4 Tactical Retreats 29 | . . . 4 1 8 . 12 2 . 1 1 . . Traps | -11 -10 -10 -9 -9 -9 -8 -8 -8 -8 -7 -7 -7 -7 ------- Run | Scr Mat Min Mat Min Exi Min Mat Gar Mat Fac Low Low Dat Traps Triggered 18 | . 1 . . . . . . 13 1 3 . . . Indirectly . | . . . . . . . . . . . . . . Trap Hack Attempts . | . . . . . . . . . . . . . . Triggered . | . . . . . . . . . . . . . . Disarmed . | . . . . . . . . . . . . . . Reprogrammed . | . . . . . . . . . . . . . . Reused . | . . . . . . . . . . . . . . Traps Extracted . | . . . . . . . . . . . . . . Installed . | . . . . . . . . . . . . . . Triggered . | . . . . . . . . . . . . . . Exploded 3 | . . . . . 3 . . . . . . . . Machines | -11 -10 -10 -9 -9 -9 -8 -8 -8 -8 -7 -7 -7 -7 ---------- Run | Scr Mat Min Mat Min Exi Min Mat Gar Mat Fac Low Low Dat Machines Disabled 13 | . 2 . . . 8 . . 3 . . . . . Max in Single Turn 1 | . 1 . . . 1 . . 1 . . . . . Garrison Access 1 | . . . . . . . . . . 1 . . . Garrison Relay 3 | . . . . . . . . 3 . . . . . Machines Sabotaged . | . . . . . . . . . . . . . . Garrisons Compromised . | . . . . . . . . . . . . . . Overloaded Fab Kills . | . . . . . . . . . . . . . . Fab Network Shutdowns . | . . . . . . . . . . . . . . Hacking | -11 -10 -10 -9 -9 -9 -8 -8 -8 -8 -7 -7 -7 -7 --------- Run | Scr Mat Min Mat Min Exi Min Mat Gar Mat Fac Low Low Dat Machines Accessed 37 | . 8 . 2 . 2 . 9 . 1 8 1 2 4 Terminals 21 | . 8 . 2 . . . 5 . 1 5 . . . Fabricators . | . . . . . . . . . . . . . . Repair Stations 2 | . . . . . . . 1 . . 1 . . . Recycling Units . | . . . . . . . . . . . . . . Scanalyzers 2 | . . . . . . . 2 . . . . . . Garrison Access 3 | . . . . . . . 1 . . 2 . . . Total Hacks 113 | . 23 . 5 . 5 . 28 . 3 18 1 4 26 Successful 79 | . 12 . 5 . 5 . 15 . 1 10 1 4 26 Failed 34 | . 11 . . . . . 13 . 2 8 . . . Catastrophic 6 | . 1 . . . . . 2 . 1 2 . . . Database Lockouts . | . . . . . . . . . . . . . . Manual 56 | . 22 . 4 . 1 . 12 . 3 14 . . . Terminals 57 | . 23 . 5 . . . 13 . 3 13 . . . Fabricators . | . . . . . . . . . . . . . . Repair Stations 5 | . . . . . . . 2 . . 3 . . . Recycling Units . | . . . . . . . . . . . . . . Scanalyzers 10 | . . . . . . . 10 . . . . . . Garrison Access 5 | . . . . . . . 3 . . 2 . . . Terminal Hacks 43 | . 3 . 1 . 5 . 1 . . 2 1 4 26 Record 19 | . . . . . 4 . . . . . 1 3 11 Part Schematic 8 | . 2 . . . . . . . . . . . 6 Robot Schematic 6 | . . . . . . . . . . . . . 6 Prototype ID Bank 3 | . . . . . . . . . . . . . 3 Open Door 1 | . . . . . . . . . . . . 1 . Branch Access Points 2 | . . . . . . . 1 . . 1 . . . Terminal Index 1 | . . . . . . . . . . 1 . . . Hauler Manifests 1 | . . . 1 . . . . . . . . . . Zone Layout 1 | . 1 . . . . . . . . . . . . EX-Prototype ID Bank 1 | . . . . . 1 . . . . . . . . Fabricator Hacks . | . . . . . . . . . . . . . . Repair Station Hacks 4 | . . . . . . . 2 . . 2 . . . Scan Component 2 | . . . . . . . 1 . . 1 . . . Repair 2 | . . . . . . . 1 . . 1 . . . Recycling Unit Hacks . | . . . . . . . . . . . . . . Scanalyzer 8 | . . . . . . . 8 . . . . . . Insert Component 5 | . . . . . . . 5 . . . . . . Analyze 3 | . . . . . . . 3 . . . . . . Garrison Access Hacks 2 | . . . . . . . 1 . . 1 . . . Unlock Access 1 | . . . . . . . 1 . . . . . . Seal Access 1 | . . . . . . . . . . 1 . . . Unauthorized Hacks 22 | . 9 . 4 . . . 3 . 1 5 . . . Terminals 21 | . 9 . 4 . . . 3 . 1 4 . . . Track 2 | . 1 . 1 . . . . . . . . . . Assimilate 2 | . 2 . . . . . . . . . . . . Botnet 15 | . 5 . 2 . . . 3 . 1 4 . . . Operators 2 | . 1 . 1 . . . . . . . . . . Fabricators . | . . . . . . . . . . . . . . Repair Stations . | . . . . . . . . . . . . . . Recycling Units . | . . . . . . . . . . . . . . Scanalyzers . | . . . . . . . . . . . . . . Garrison Access 1 | . . . . . . . . . . 1 . . . Reprogram 1 | . . . . . . . . . . 1 . . . Data Cores Recovered . | . . . . . . . . . . . . . . Used . | . . . . . . . . . . . . . . Hacking Detections 25 | . 8 . 2 . . . 8 . 1 6 . . . Full Trace Events 1 | . . . . . . . 1 . . . . . . Feedback Events . | . . . . . . . . . . . . . . Feedback Blocked . | . . . . . . . . . . . . . . Robot Schematics Acquired 6 | . . . . . . . . . . . . . 6 Robots Built . | . . . . . . . . . . . . . . Matter . | . . . . . . . . . . . . . . Time . | . . . . . . . . . . . . . . Total Robot Build Rating . | . . . . . . . . . . . . . . Part Schematics Acquired 11 | . 2 . . . . . 3 . . . . . 6 Parts Built . | . . . . . . . . . . . . . . Matter . | . . . . . . . . . . . . . . Time . | . . . . . . . . . . . . . . Total Part Build Rating . | . . . . . . . . . . . . . . Parts Repaired 2 | . . . . . . . 1 . . 1 . . . Time 78 | . . . . . . . 40 . . 38 . . . Parts Recycled . | . . . . . . . . . . . . . . Recycled Matter . | . . . . . . . . . . . . . . Retrieved Matter . | . . . . . . . . . . . . . . Retrieved Components . | . . . . . . . . . . . . . . Parts Scanalyzed 4 | . . . . . . . 4 . . . . . . Part Schematics Acquired 3 | . . . . . . . 3 . . . . . . Parts Damaged . | . . . . . . . . . . . . . . Bothacking | -11 -10 -10 -9 -9 -9 -8 -8 -8 -8 -7 -7 -7 -7 ------------ Run | Scr Mat Min Mat Min Exi Min Mat Gar Mat Fac Low Low Dat Used RIF Installer 1 | . . . . . . . . 1 . . . . . Robots Hacked 6 | . . . . . . . . . . 3 3 . . Non-combat 3 | . . . . . . . . . . 3 . . . Combat 3 | . . . . . . . . . . . 3 . . Robot Hacks Applied 7 | . . . . . . . . . . 4 3 . . find_chute 1 | . . . . . . . . . . 1 . . . map_route 1 | . . . . . . . . . . 1 . . . relay_feed 1 | . . . . . . . . . . 1 . . . streamctrl_low 1 | . . . . . . . . . . 1 . . . formatsys_high 3 | . . . . . . . . . . . 3 . . Relay Couplers Released 14 | . . . . . . . . 14 . . . . . Machine Destruction 14 | . . . . . . . . 14 . . . . . Attached 4 | . . . . . . . . . . 3 1 . . Robots Rewired 2 | . . . . . . . . . . . 2 . . Allies Hacked . | . . . . . . . . . . . . . . Hacks Repelled . | . . . . . . . . . . . . . . Allies | -11 -10 -10 -9 -9 -9 -8 -8 -8 -8 -7 -7 -7 -7 -------- Run | Scr Mat Min Mat Min Exi Min Mat Gar Mat Fac Low Low Dat Total Allies 16 | . 1 2 . 3 . 1 . . . 4 5 . . Largest Group 3 | . 1 3 3 3 2 1 1 . . 2 2 2 . Highest-Rated Group 50 | . 10 45 45 40 24 16 13 . . 50 48 48 . Highest-Rated Ally 32 | . 10 31 31 16 16 16 13 . . 32 32 32 . Total Orders 8 | . . 2 2 . 1 . . . . 1 . 2 . STAY 4 | . . 1 1 . 1 . . . . . . 1 . FOLLOW 3 | . . 1 1 . . . . . . . . 1 . AID 1 | . . . . . . . . . . 1 . . . Ally Attacks 78 | . . . 11 18 4 11 1 . . 7 19 7 . Total Damage 1142 | . . . 126 170 48 237 17 . . 171 220 153 . Kills 13 | . . . 2 3 . 4 . . . 1 2 1 . Allies Corrupted . | . . . . . . . . . . . . . . Allies Melted . | . . . . . . . . . . . . . . Turrets Deployed 1 | . . . . . . 1 . . . . . . . Field Lobotomies 2 | . . . . . . 1 . . . 1 . . . Intel | -11 -10 -10 -9 -9 -9 -8 -8 -8 -8 -7 -7 -7 -7 ------- Run | Scr Mat Min Mat Min Exi Min Mat Gar Mat Fac Low Low Dat Robot Analysis Total 115 | . . . . . . . . . . . . . 115 Derelict Logs Recovered 6 | . . 2 . 2 . . . . . . 2 . . Drone Launches . | . . . . . . . . . . . . . . Drone Recoveries . | . . . . . . . . . . . . . . Exploration | -11 -10 -10 -9 -9 -9 -8 -8 -8 -8 -7 -7 -7 -7 ------------- Run | Scr Mat Min Mat Min Exi Min Mat Gar Mat Fac Low Low Dat Turns Passed 17713 | 136 1291 896 542 1048 2626 747 1422 2551 909 2165 1620 1424 336 Spaces Moved 7696 | 54 668 533 193 542 1266 360 490 1111 197 782 738 629 133 Core 11 | . . . . . 4 . . . 7 . . . . Treads 6304 | 34 668 533 193 542 693 360 490 1111 154 72 692 629 133 Legs 782 | 20 . . . . 569 . . . 36 157 . . . Wheels 599 | . . . . . . . . . . 553 46 . . Hover . | . . . . . . . . . . . . . . Flight . | . . . . . . . . . . . . . . Fastest Speed 120 | 120 160 160 160 180 120 200 200 180 220 140 140 192 192 Average Speed 194 | 145 169 160 176 180 170 200 212 194 359 231 205 192 192 Slowest Speed 2450 | 160 180 160 200 180 450 200 220 220 2450 360 212 192 240 Overloaded Moves . | . . . . . . . . . . . . . . Propulsion Burnouts . | . . . . . . . . . . . . . . Robots Hopped 3 | . . . . . . 3 . . . . . . . Cave-ins Triggered . | . . . . . . . . . . . . . . Exploration Rate (%) 62 | 3 91 98 23 95 86 71 47 84 25 21 83 67 76 Regions Visited 13 Branch Regions 7 Pre-discovered Areas 26 | . . . . . 1 . . . . . . . 25 Known Exits Taken 4 | . . . 1 . . . 1 . . 1 . 1 . Unknown Exits Taken 8 | 1 1 1 . 1 1 1 . . 1 . 1 . . Scrap Searched 12 | . . 2 . 2 . 1 . . . . 4 3 . Spaces Dug 7 | . 2 . . 1 . . 3 . . 1 . . . Terrain Destroyed 31 | . 11 . . 2 4 . 4 . 8 1 . . 1 Melee 2 | . . . . . . . 1 . . 1 . . . Projectile 18 | . 4 . . 2 . . 3 . 8 . . . 1 AOE 11 | . 7 . . . 4 . . . . . . . . Terrain Rammed . | . . . . . . . . . . . . . . Walls Destroyed . | . . . . . . . . . . . . . . Machines Disabled . | . . . . . . . . . . . . . . Actions | -11 -10 -10 -9 -9 -9 -8 -8 -8 -8 -7 -7 -7 -7 --------- Run | Scr Mat Min Mat Min Exi Min Mat Gar Mat Fac Low Low Dat Total 9449 | 98 785 556 295 576 1558 371 692 1367 297 1023 810 831 190 Wait 491 | 18 15 9 20 1 22 4 43 20 25 103 16 176 19 Move 7678 | 53 667 532 192 541 1265 353 490 1110 196 781 737 628 133 Hop 3 | . . . . . . 3 . . . . . . . Pick Up 187 | 7 31 1 2 6 57 1 14 43 2 13 6 2 2 Fast Attach 70 | 2 2 . 5 1 13 . 12 7 10 11 4 1 2 Attach 72 | 2 1 . 2 5 21 1 5 7 2 11 4 1 10 Detach 46 | . . . 2 . 15 . 7 8 1 9 3 . 1 Swap 85 | . 8 . 3 1 8 1 11 21 3 13 9 6 1 Drop 187 | 6 30 1 7 1 47 1 17 42 6 11 5 9 4 Fire 561 | 10 31 13 62 20 110 7 88 65 52 57 21 8 17 Melee 24 | . . . . . . . 2 17 . 4 . . 1 Ram . | . . . . . . . . . . . . . . Kick . | . . . . . . . . . . . . . . Crush 4 | . . . . . . . 3 1 . . . . . Escape Stasis 36 | . . . . . . . . 26 . 10 . . . Rewire 5 | . . . . . . . . . . . 5 . . Trap . | . . . . . . . . . . . . . . Miscellaneous . | . . . . . . . . . . . . . . Route ------- -11/Scrapyard -10/Materials (discovered 5 exits: *Mat x3 / [*Min x2]) -10/Mines (discovered 2 exits: *Mat x2) -9/Materials (discovered 2 exits: *Min x2) -9/Mines (discovered 3 exits: *Mat x2 / *Exi) -9/Exiles (discovered 2 exits: [*Min x2]) -8/Mines -8/Materials (discovered 2 exits: *Fac / Gar) -8/Garrison (discovered 3 exits: *Mat x3) -8/Materials -7/Factory (discovered 4 exits: [*Fac] / Sto / *Low x2) -7/Lower Caves -7/Lower Caves (discovered 2 exits: [*Fac] / *Dat) -7/Data Miner (discovered 1 exit: [*Pro]) History --------- Turn | Location | Event 11 | -11/Scrapyard | Discovered new exit (range 3) 137 | -11/Scrapyard | Entered Materials 191 | -10/Materials | Discovered new exit (range 10) 263 | -10/Materials | Discovered new exit (range 16) 304 | -10/Materials | Build established: Mutant 541 | -10/Materials | Discovered new exit (range 5) 829 | -10/Materials | Discovered new exit (range 16) 1253 | -10/Materials | Discovered new exit (range 15) 1428 | -10/Materials | Entered Mines 1428 | -10/Mines | Accompanied by 1 ally 1619 | -10/Mines | Discovered new exit (range 9) 1800 | -10/Mines | Found a damaged Exp. Sensor Array with a note attached 1803 | -10/Mines | Found Prototype Device 1892 | -10/Mines | Discovered new exit (range 2) 2324 | -10/Mines | Entered Materials 2324 | -9/Materials | Accompanied by 3 allies 2324 | -9/Materials | Evolved 2 slots: Utility x2 2325 | -9/Materials | Identified exit to Mines 2329 | -9/Materials | Led the pair of lost Derelicts to an unsafe place 2688 | -9/Materials | Destroyed 7 combat bots 2866 | -9/Materials | Entered Mines 2911 | -9/Mines | Lost 5 parts (1p2n2u) 2944 | -9/Mines | Discovered new exit (range 3) 3005 | -9/Mines | Learned 2 Materials zone layouts 3020 | -9/Mines | Assisted by bots powering up and referring to "LRC-V3" 3061 | -9/Mines | Learned Materials machine intel 3200 | -9/Mines | Discovered new exit (range 13) 3903 | -9/Mines | Deemed a non-threat by the Exiles lab entrance 3905 | -9/Mines | Discovered new exit (range 5) 3914 | -9/Mines | Entered Exiles 3914 | -9/Exiles | Accompanied by 2 allies 3959 | -9/Exiles | Met 8R-AWN 3988 | -9/Exiles | Met EX-HEX 4096 | -9/Exiles | Met EX-DEC 4126 | -9/Exiles | Learned location of Zion (-6) 4241 | -9/Exiles | Discovered new exit (range 14) 4796 | -9/Exiles | Met EX-BIN 4817 | -9/Exiles | Aligned with FarCom system 4819 | -9/Exiles | Given EX-Vault access code 4860 | -9/Exiles | Opened EX-Vault 4871 | -9/Exiles | Found AWS/Thermal 4879 | -9/Exiles | Found Chronowheel 4884 | -9/Exiles | Found Field Lobotomy Kit 4921 | -9/Exiles | Warned to stay clear of 0b10 Research branches 5005 | -9/Exiles | Attacked by the Exiles 5038 | -9/Exiles | Build established: Hauler-Mutant 5117 | -9/Exiles | Core integrity fell below 50% 5190 | -9/Exiles | Core integrity fell below 20% 5241 | -9/Exiles | Destroyed 8R-AWN 5266 | -9/Exiles | Lost 9 parts (1p3n2u3w) 5277 | -9/Exiles | Found Prototype Ballistic Gun 5554 | -9/Exiles | Destroyed EX-BIN 5560 | -9/Exiles | Destroyed EX-HEX 5598 | -9/Exiles | Destroyed EX-DEC 5719 | -9/Exiles | Build established: Mutant 6100 | -9/Exiles | Found Prototype Device 6101 | -9/Exiles | Identified System Purifier 6134 | -9/Exiles | Build established: Hauler-Mutant 6137 | -9/Exiles | Found Deploy-a-Sentry 6516 | -9/Exiles | Discovered new exit (range 14) 6540 | -9/Exiles | Stole four prototypes: Chronowheel, AWS/Thermal, Field Lobotomy Kit, Deploy-a-Sentry 6540 | -9/Exiles | Entered Mines 6623 | -8/Mines | DAS Turret deployed 7068 | -8/Mines | Discovered new exit (range 8) 7235 | -8/Mines | Assimilated G-47 Trooper with FLK Orb 7287 | -8/Mines | Entered Materials 7287 | -8/Materials | Accompanied by 1 ally 7287 | -8/Materials | Evolved 2 slots: Utility x2 7289 | -8/Materials | Loaded intel: 44 machine locations 7393 | -8/Materials | Identified Exp. Sensor Array 8286 | -8/Materials | Discovered new exit (range 13) 8395 | -8/Materials | Repaired Cold Fusion Reactor 8619 | -8/Materials | Identified 8R-AWN's Boregun 8709 | -8/Materials | Identified exit to Garrison 8709 | -8/Materials | Entered Garrison 8870 | -8/Garrison | Triggered checkpoint 9204 | -8/Garrison | Build established: Scavenger-Mutant 9348 | -8/Garrison | Triggered checkpoint 9348 | -8/Garrison | Triggered checkpoint 9510 | -8/Garrison | Discovered new exit (range 13) 9686 | -8/Garrison | Discovered new exit (range 9) 9720 | -8/Garrison | Installed Relay Interface Framework 9770 | -8/Garrison | Triggered checkpoint 9941 | -8/Garrison | Discovered new exit (range 10) 9962 | -8/Garrison | Triggered checkpoint 10016 | -8/Garrison | Lost 5 parts (1p2u2w) 10133 | -8/Garrison | Garrison Relay disabled 10613 | -8/Garrison | Build established: Hauler-Mutant 10622 | -8/Garrison | Garrison Relay disabled 11156 | -8/Garrison | Garrison Relay disabled 11260 | -8/Garrison | Entered Materials 11499 | -8/Materials | Core integrity fell below 50% 11660 | -8/Materials | First assault squad dispatched 12013 | -8/Materials | Core integrity fell below 20% 12149 | -8/Materials | Discovered new exit (range 5) 12169 | -8/Materials | Entered Factory 12169 | -7/Factory | Evolved 2 slots: Utility x2 12245 | -7/Factory | Discovered new exit (range 16) 12410 | -7/Factory | Build established: Bothacker-Mutant 12556 | -7/Factory | Discovered new exit (range 55) 12617 | -7/Factory | Repaired Hrd. Medium Armor Plating 12868 | -7/Factory | Lost 6 parts (1p1n2u2w) 13752 | -7/Factory | Assimilated Y-54 Guardian with FLK Orb 13875 | -7/Factory | Garrison activated, responded to threat 14170 | -7/Factory | Discovered new exit (range 13) 14173 | -7/Factory | Identified exit to Storage 14173 | -7/Factory | Identified exit to Lower Caves 14334 | -7/Factory | Entered Lower Caves 15567 | -7/Lower Caves | Attracted the attention of an 0b10 checkpoint 15661 | -7/Lower Caves | Learned Factory terminal intel 15695 | -7/Lower Caves | Learned Factory trap positions 15719 | -7/Lower Caves | Attracted the attention of an 0b10 outpost 15781 | -7/Lower Caves | Destroyed 7 combat bots 15880 | -7/Lower Caves | Discovered new exit (range 11) 15954 | -7/Lower Caves | Entered another Lower Caves area 15954 | -7/Lower Caves | Accompanied by 2 allies 16131 | -7/Lower Caves | Discovered new exit (range 12) 16520 | -7/Lower Caves | Learned Factory security intel 16520 | -7/Lower Caves | Learned Armory garrison access intel 16534 | -7/Lower Caves | Build established: Bothacker-Skirmisher 17361 | -7/Lower Caves | Discovered new exit (range 10) 17376 | -7/Lower Caves | Identified exit to Data Miner 17378 | -7/Lower Caves | Entered Data Miner 17378 | -7/Data Miner | Discovered new exit (range 6) 17415 | -7/Data Miner | Met Data Miner 17453 | -7/Data Miner | Learned location of Section 7 (-2) 17453 | -7/Data Miner | Acquired the access code to Warlord's prototype stash 17488 | -7/Data Miner | Received God Mode back door access code from Data Miner 17503 | -7/Data Miner | Build established: Bothacker-Mutant 17635 | -7/Data Miner | Interfaced with the Data Conduit 17653 | -7/Data Miner | Core integrity fell below 50% 17688 | -7/Data Miner | Core integrity fell below 20% 17714 | -7/Data Miner | Destroyed by Enhanced Grunt with Neutron Cannon Last Messages --------------- 17656_ Med. Treads destroyed. 17658_ Lrg. Storage Unit destroyed. 17659_ Insulated Plating destroyed. 17662_ Adv. Heat Sink melted. 17662_ Enhanced Grunt destroyed. 17674_ Enhanced Grunt heat damages Lyr. Medium Armor Plating. 17675_ Enhanced Grunt overheating. 17676_ AWS/Thermal destroyed. 17679_ Slug penetrates Data Conduit. 17680_ Adv. Heat Sink destroyed. 17682_ Slug penetrates Enhanced Grunt. 17683_ Gauss Rifle destroyed. 17685_ Mic. Fission Core destroyed. 17691_ Slug penetrates Enhanced Grunt. 17697_ Lrg. Storage Unit destroyed. 17698_ Enhanced Grunt destroyed. 17701_ Slug penetrates Enhanced Grunt. 17703_ Gauss Rifle destroyed. 17707_ Flak Gun destroyed. 17707_ Adv. Core Analyzer destroyed. Map ----- +----------------------------------------------------+ | | | | | | | | | | | | | | | | | | | | | | | | | ?????????????????????????????????????????? | | ?????????????????????????????????????????? | | ?????????????????????????????????????????? | | ?????????????????????????????????????????? | | ?????????????????????????????????????####? | | ??????###############??????#???????### #? | | ?????"""""""""""""""###### #??????## #? | | ????""""""""" """"""""*!# # #### < ##? | | ????""""""""" *%!%= ## | | ????"""""" !!g! | | ???""""""" ! | | ???"""""" !%! | | ???""""""" ! = | | ????""""" !@! """""""""""""""## | | ????""""""" !! ""###############? | | ????""""""" """###??????????????? | | ?????""""""" #####????????????????? | | ??????######";; "#????????????????????? | | ???????????#"##; "#????????????????????? | | ???????????#"### "#????????????????????? | | ???????????#"?# "#????????????????????? | | ?????????????## "#????????????????????? | | ?????????????# "#????????????????????? | | ?????????????### "#????????????????????? | | ???????????????# "##???????????????????? | | ??????????????## ""#???????????????????? | | ???????????#?## ""#???????????????????? | | ??????????##"#"X ""#???????????????????? | | ?????????"""""" "####????????????????? | | ?????????#""""" X"""""????????????????? | | ?????????###"#"X "##"#????????????????? | | ???????????#?## X""""#????????????????? | | ??????????????## "##"#????????????????? | | ???????????????#######???????????????????? | | ?????????????????????????????????????????? | | ?????????????????????????????????????????? | | ?????????????????????????????????????????? | | ?????????????????????????????????????????? | +----------------------------------------------------+ Best States ------------- Heat Dissipation 53 Energy Generation 18 Energy Capacity 310 Matter Stores 300 Matter Capacity 450 Sight Range 16 Robot Scan Range 30 Terrain Scan Range 16 Terrain Scan Density 10 Armor Coverage 525 Resistance: TH 10 Resistance: EM 15 Weapon Shielding 66 Evasion (%) 40 Target Analysis 6 Core Analysis 10 Recoil Reduction 2 Offensive Hacking 10 Defensive Hacking 10 Relay Coupler Types 30 Relay Coupler Value 1 Item Schematics ----------------- Hcp. Storage Unit | -10/Materials | Hacked Lrg. Storage Unit | -10/Materials | Hacked Prc. Beam Rifle | -8/Materials | Scanalyzed Cesium-ion Thruster | -8/Materials | Scanalyzed Exp. Sensor Array | -8/Materials | Scanalyzed Combat Drone Bay | -7/Data Miner | Free Lgt. Regenerative Plating | -7/Data Miner | Free Exp. Cesium-ion Thruster | -7/Data Miner | Free Exp. Terrain Scan Processor | -7/Data Miner | Free Tactical Coordination Suite | -7/Data Miner | Free Cloaking Device | -7/Data Miner | Free Robot Schematics ------------------ S-27 Virus | -7/Data Miner | Free G-50 Soldier | -7/Data Miner | Free G-67 Veteran | -7/Data Miner | Free X-72 Disruptor | -7/Data Miner | Free I-36 Angel | -7/Data Miner | Free I-47 Archangel | -7/Data Miner | Free Fabricated ------------ Nothing Alien Tech Used ----------------- None Achievements -------------- None Challenges ------------ None Game ------ Seed CoordinationCoilWand Manual? 0 Play Time 02:01:49 Cumulative 92.8 hours Start 2020.11.08 @ 16:58:45 End 2020.11.08 @ 20:25:17 Sessions 5 Manual Loads 0 Difficulty Rogue Special Mode Halloween2020/ForbiddenLore Game No. 78 Rogue 78 Adventurer 0 Explorer 0 Win Type - Total 0 Types 0/0/0/0/0/0/0/0/0 Lore% 48 Gallery% 56 Achievement% 52 Wizard Run 0 Options --------- ASCII 0 Keyboard 1 Movement Numpad Keybinds 0 Fullscreen 1 Font 12/Terminus Map View 83x54 Tactical HUD 1 Map Filters NONE Filters NONE Steam 1 RUN: 365b88ab-5dcb-4536-a7cd-474ce9af3b52